Workbook

Sheet Input og resultat
A1: Nedbørskarakteristika | I1: Pil ikke - intern beregning
A2: Kommune | B2: Holbæk | I2: Afskærende lednings kapacitet l/s | J2: 0.4
I3: Volumen m³ | J3: =IDF!M15 -> 36.40102089
A4: Designkarakteristika | I4: Total opland (m²) | J4: 1000
A5: Gentagelsesperiode (år) | B5: 5 | C5: år
A6: Sikkerhedsfaktor (klima, fremtidig udbygning, etc) | B6: 1.1 | F6: Beregningstjek | G6: Vol m³ | H6: Dræn kap l/s | I6: Iterationsafstand | J6: Antal iterationer
A7: Oplandskarakteristika | E7: Faskine | F7: =IF(ABS((H7-B20)/H7)<0.001,"OK","Beregn") -> Beregn | G7: 0 | H7: 0.01690236963 | I7: 0.000993637966 | J7: 6
A8: Befæstet areal (m²) | C8: m² | E8: Regnbed | F8: =IF(ABS((H8-B26)/H8)<0.001,"OK","Beregn") -> Beregn | G8: 0 | H8: 0.1 | I8: 0 | J8: 1
E9: Grøft | F9: =IF(ABS((H9-B35)/H9)<0.001,"OK","Beregn") -> Beregn | G9: 1e-05 | H9: 0.02860332817 | I9: 0.0009270973224 | J9: 2
A10: Jord- og nedsivningskarakteristika | E10: Perm. bel. | F10: =IF(ABS((H10-B44)/H10)<0.001,"OK","Beregn") -> Beregn | G10: 0 | H10: 0.3 | I10: 0 | J10: 1
A11: K (Hydraulisk ledningsevne) - se evt måling nederst | B11: 1e-06 | C11: m/s
A14: Faskine | E14: Hjælpestørrelser, faskine | I14: Dimensionerende kasseregn, Afløbsteknik s. 269
A15: Bredde | B15: 0.8 | C15: m | E15: Opstuvningsvolumen | G15: =F_bredde*F_hojde*F_hulrum*F_laengde -> 0 | H15: [m³] | I15: Vr,k (mm) | J15: 49.2254593
A16: Højde | B16: 0.51 | C16: m | E16: Faskine volumen | G16: =G15/F_hulrum -> 0 | H16: [m³] | I16: Varighed (h) | J16: 56.32563069
A17: Hulrums andel i faskine [Plast: 0,95, sten: 0,25] | B17: 0.95 | C17: 0-1 | E17: Regn, der holdes umiddelbart | G17: =G15/B8*1000 ->  | H17: [mm]
A18: Udsivning i faskinebund: 0=Nej ,1=ja | B18: 0 | E18: Regn, der siver pr døgn | G18: =B20*86400/B8 ->  | H18: [mm/døgn] | I18: Karakteritika for dimensionerende kasseregn
A19: Længde faskine | B19: =G7/(B15*B16*B17) -> 0 | C19: m | E19: Tømmetid | F19: =ROUND(G19/60/60,0) -> 0 | G19: =G15/(B20/1000) -> 0 | H19: [s] | I19: Samlet nedbør (mm) | J19: =J15+G18/24*J16 -> 
A20: Dræn kapacitet, gennemsnit | B20: =((B19+B15)*B16+B18*B19*B15)*B11*1000 -> 0.000408 | C20: l/s | E20: Afløbstal | G20: =B20/B8*10000 ->  | H20: [l/sek/ha] | I20: Intensitet (l/sek/ha) | J20: =J19*10000/(J16*3600) -> 
A23: Regnbed | E23: Hjælpestørrelser, regnbed | I23: Dimensionerende kasseregn, Afløbsteknik s. 269
A24: Areal regnbed | B24: 25 | C24: m² | E24: Opstuvningsvolumen | G24: =R_dybde*B24 -> 0 | H24: [m³] | I24: Vr,k (mm) | J24: 44.88422801
A25: Dybde | B25: =G8/R_areal -> 0 | C25: m | E25: Regn, der holdes umiddelbart | G25: =G24/R_sam_opland*1000 -> 0 | H25: [mm] | I25: Varighed (h) | J25: 38.85388983
A26: Dræn kapacitet | B26: =B24*B11*1000 -> 0.025 | C26: l/s | E26: Regn, der siver pr døgn | G26: =B26*86400/R_sam_opland -> 86.4 | H26: [mm/døgn] | I26: Karakteritika for dimensionerende kasseregn
A27: Samlet opland (befæstet areal + eget areal) | B27: =B8+B24 -> 25 | C27: m² | E27: Tømmetid | F27: =ROUND(G27/60/60,0) -> 0 | G27: =G24/(B26/1000) -> 0 | H27: [s] | I27: Samlet nedbør (mm) | J27: =J24+G26/24*J25 -> 184.7582314
E28: Afløbstal | G28: =R_draenkapacitet/R_sam_opland*10000 -> 10 | H28: [l/sek/ha] | I28: Intensitet (l/sek/ha) | J28: =J27*10000/(J25*3600) -> 13.20890422
A31: Grøft / wadi, V-formet | E31: Hjælpestørrelser, grøft | I31: Dimensionerende kasseregn, Afløbsteknik s. 269
A32: Bredde (kronekant) | B32: 2 | C32: m | E32: Opstuvningsvolumen | G32: =0.5*B32*B34*B33 -> 1e-05 | H32: [m³] | I32: Vr,k (mm) | J32: 44.37770646
A33: Længde grøft | B33: 25 | C33: m | E33: Regn, der holdes umiddelbart | G33: =G32/B36*1000 -> 0.0002 | H33: [mm] | I33: Varighed (h) | J33: 37.12113939
A34: Dybde | B34: =(G9*2)/(G_bredde*G_Laengde) -> 4e-07 | C34: m | E34: Regn, der siver pr døgn | G34: =G32/(G35/86400)/G_sam_opl*1000 -> 43.2 | H34: [mm/døgn] | I34: Karakteritika for dimensionerende kasseregn
A35: Dræn kapacitet, gns-snit | B35: =G32/G35*1000 -> 0.025 | C35: l/s | E35: Tømmetid | F35: =ROUND(G35/60/60,0) -> 0 | G35: =G_bredde/(2*B11*SQRT(1+(G_bredde/(2*G_dybde))^2)) -> 0.4 | H35: [s] | I35: Samlet nedbør (mm) | J35: =J32+G34/24*J33 -> 111.1957574
A36: Samlet opland (befæstet areal + eget areal) | B36: =B8+G_Laengde*G_bredde -> 50 | C36: m² | E36: Afløbstal | G36: =G_draenkapacitet/G_sam_opl*10000 -> 5 | H36: [l/sek/ha] | I36: Intensitet (l/sek/ha) | J36: =J35*10000/(J33*3600) -> 8.320787261
A39: Permeabel belægning | E39: Hjælpestørrelser, perm. belægning | I39: Dimensionerende kasseregn, Afløbsteknik s. 269
A40: Areal af permeabel belægning | B40: 400 | C40: m² | E40: Opstuvningsvolumen | G40: =P_belaegning*B43*B42/1000 -> 0 | H40: [m³] | I40: Vr,k (mm) | J40: 28.73202658
A41: Areal af tilstødende afvandingsareal (tag, vej, etc) | B41: 600 | C41: m² | E41: Belægningsvolumen | G41: =P_belaegning*B43/1000 -> 0 | H41: [m³] | I41: Varighed (h) | J41: 6.662120999
A42: Hulrumsandel af lag under belægning [0-1] | B42: 0.3 | C42: 0-1 | E42: Regn, der holdes umiddelbart | G42: =G40/(P_belaegning+P_tilst_areal)*1000 -> 0 | H42: [mm]
A43: Dybde af lag under belægning | B43: 0 | C43: mm | E43: Regn, der siver pr døgn | G43: =G40/(G44/86400)/(P_belaegning+P_tilst_areal)*1000 ->  | H43: [mm/døgn] | I43: Karakteritika for dimensionerende kasseregn
A44: Dræn kapacitet | B44: =B40*B11*1000 -> 0.4 | C44: l/s | E44: Tømmetid | F44: =ROUND(G44/60/60,0) -> 0 | G44: =G40/(B44/1000) -> 0 | H44: [s] | I44: Samlet nedbør (mm) | J44: =J40+G43/24*J41 -> 
E45: Afløbstal | G45: =B44/(P_belaegning+P_tilst_areal)*10000 -> 4 | H45: [l/sek/ha] | I45: Intensitet (l/sek/ha) | J45: =J44*10000/(J41*3600) -> 
A49: Tabelværdier for den hydrauliske ledningsevne, K. Værdierne rækker over et stort spænd og K skal måles aktuelt på stedet.
A50: Grus | B50: 1e-3 til 0,1 | C50: m/s | D50: 3.600 - 360.000 | E50: mm/ time
A51: Sand: | B51: 1e-5 til 1e-2 | C51: m/s | D51: 36 - 36.000 | E51: mm/ time
A52: Silt: | B52: 1e-9 til 1e-5 | C52: m/s | D52: 0,0036 - 36 | E52: mm/ time
A53: Ren ler: | B53: under 1,0e-9 | C53: m/s | D53: under 0,0036 | E53: mm/ time
A54: Moræneler | B54: 1e-10 til 1e-6 | C54: m/s | D54: 0,00036 - 3,6 | E54: mm/ time

Sheet IDF
M1: Bassindimensionering opstrøms udløb | T1: Regression | AD1: Sæt optimering i gang
M2: Oplandskarakteristika | AD2: Initdummy
M3: Befæstet areal (ha) | Q3: ='Input og resultat'!J4/10000 -> 0.1 | T3: Estimates, 3 parameters: | AD3: =initdummy(B3,B4,B8,B9,B10,I3,I4,I5,Q3,Q4,Q5) -> 1
M4: Hydrologisk reduktionsfaktor (-) | Q4: 1 | T4: Alpha | U4: =EXP(X22/11+U7*W22/11) -> 139.7345351
A5: Årsmiddelnedbør [mm] | B5: =VLOOKUP('Input og resultat'!B2,Kommuneliste!A3:C101,2,FALSE) -> 618.9944681 | C5: Fås fra kommunelisten | M5: Afskærende lednings kapacitet (l/s) | Q5: ='Input og resultat'!J2 -> 0.4 | T5: Theta | U5: =AD11 -> 4.526368112 | AD5: idftheta | AE5: theta
A6: Middelværdi Klimagrid [mm/dag] | B6: =VLOOKUP('Input og resultat'!B2,Kommuneliste!A3:C101,3,FALSE) -> 27.67602677 | C6: Fås fra kommunelisten
T7: Nu | U7: =-(Z22-W22*X22/11)/(Y22-W22^2/11) -> 0.7384556131 | AD7: =idftheta(AE7) -> 0.202438779 | AE7: 1
A8: Gentagelsesperiode (år) | B8: ='Input og resultat'!B5 -> 5 | C8: =IF(B8<1/help1!C11,CONCATENATE(" Fejl: Indtast gentagelsesperiode > ",ROUND(1/help1!C11,2)," år")," ") ->  | M8: NB. Frekvens- og sikkerhedsfaktorer på regnen | AD8: derividf | AE8: x
A9: Sikkerhedsfaktor (Fra Skrift 27) | B9: ='Input og resultat'!B6 -> 1.1 | C9: Defineret i Skrift 27, Faktor til beskrivelse af usikkerhed, klima, mv. Typisk 1.0 - 1.8 | M9: indgår ved beregning af bassinvolumen | T9: Dur (min) | U9: Intensity | V9: ln(dur) | W9: ln(dur+Theta) | X9: ln(int) | Y9: ln(dur+Theta)^2 | Z9: ln(dur+Theta)*ln(int) | AA9: Est. Intensity | AB9: Obj.Func | AD9: =derividf(AE9) -> -0.1879921041 | AE9: =AE7 -> 1
T10: =IDF!A18 -> 1 | U10: =IDF!D18 -> 39.5281811 | V10: =LN(T10) -> 0 | W10: =LN(T10+$U$5) -> 1.709530839 | X10: =LN(U10) -> 3.677013863 | Y10: =W10^2 -> 2.922495689 | Z10: =W10*X10 -> 6.285968594 | AA10: =$U$4*(T10+$U$5)^(-$U$7) -> 39.54075061 | AB10: =(LN(U10)-LN(AA10))^2 -> 1.010847159e-07 | AD10: bisectidf | AE10: min | AF10: max | AG10: middel | AH10: tiny
T11: =IDF!A19 -> 2 | U11: =IDF!D19 -> 35.02637731 | V11: =LN(T11) -> 0.6931471806 | W11: 1.875850604 | X11: 3.556101415 | Y11: 3.518815487 | Z11: 6.670714986 | AA11: 34.97075139 | AB11: =(LN(U11)-LN(AA11))^2 -> 2.526121244e-06 | AD11: =bisectidf(AE11,AF11,AG11,AH11) -> 4.526368112 | AE11: 0 | AF11: 60 | AG11: =(AE11+AF11)/2 -> 30 | AH11: =AD3/100000 -> 1e-05
T12: =IDF!A20 -> 5 | U12: =IDF!D20 -> 26.55709035 | V12: 1.609437912 | W12: 2.254063545 | X12: 3.279296769 | Y12: 5.080802463 | Z12: 7.391743298 | AA12: 26.44900576 | AB12: 1.663171862e-05
T13: =IDF!A21 -> 10 | U13: =IDF!D21 -> 19.53512863 | V13: 2.302585093 | W13: 2.675965488 | X13: 2.972214313 | Y13: 7.160791295 | Z13: 7.953542926 | AA13: 19.36878423 | AB13: 7.312992366e-05
A14: Design regnkurve | M14: Volumen af bassin | T14: =IDF!A22 -> 30 | U14: =IDF!D22 -> 10.10280852 | V14: 3.401197382 | W14: 3.541723325 | X14: 2.312813456 | Y14: 12.54380411 | Z14: 8.191345365 | AA14: 10.21992223 | AB14: 0.0001328375912
M15: =Q24*Q27*12 -> 36.40102089 | N15: m3 | O15: =IF(Y27>0.1,"ADVARSEL: Programmet har muligvis ikke optimeret korrekt"," ") ->  | T15: =IDF!A23 -> 60 | U15: =IDF!D23 -> 6.219800811 | V15: 4.094344562 | W15: 4.167073948 | X15: 1.827737882 | Y15: 17.36450529 | Z15: 7.616318913 | AA15: 6.440107921 | AB15: 0.001211556176
A16: Varighed | B16: zT | C16: S{zT} | D16: f*zT | E16: Regression | M16: Effekten af koblede regn ER inkluderet (20 % ekstra volumen) | T16: =IDF!A24 -> 180 | U16: =IDF!D24 -> 2.994148699 | V16: 5.192956851 | W16: 5.21779237 | X16: 1.09665995 | Y16: 27.22535722 | Z16: 5.722143922 | AA16: 2.964286556 | AB16: 0.000100471932
A17: (min) | B17: (mm/s) | C17: (mm/s) | D17: (mm/s) | E17: (mm/s) | T17: =IDF!A25 -> 360 | U17: =IDF!D25 -> 1.83973656 | V17: 5.886104031 | W17: 5.898598889 | X17: 0.6096223873 | Y17: 34.79346886 | Z17: 3.595917937 | AA17: 1.793001419 | AB17: 0.0006621050179
A18: 1 | B18: =help1!B17 -> 35.93471009 | C18: =help1!C17 -> 3.232490159 | D18: =$B$9*B18 -> 39.5281811 | E18: =IDF!$U$4*(A18+IDF!$U$5)^(-IDF!$U$7) -> 39.54075061 | T18: =IDF!A26 -> 720 | U18: =IDF!D26 -> 1.093734729 | V18: 6.579251212 | W18: 6.585518156 | X18: 0.08959819628 | Y18: 43.36904938 | Z18: 0.5900505484 | AA18: 1.07964426 | AB18: 0.0001681326784
A19: 2 | B19: =help1!B18 -> 31.84216119 | C19: =help1!C18 -> 2.676620131 | D19: 35.02637731 | E19: =IDF!$U$4*(A19+IDF!$U$5)^(-IDF!$U$7) -> 34.97075139 | T19: =IDF!A27 -> 1440 | U19: =IDF!D27 -> 0.6564814862 | V19: 7.272398393 | W19: 7.275536774 | X19: -0.4208607863 | Y19: 52.93343535 | Z19: -3.061988128 | AA19: 0.6486146335 | AB19: 0.0001453408048
A20: 5 | B20: =help1!B19 -> 24.14280941 | C20: =help1!C19 -> 1.617755309 | D20: 26.55709035 | E20: =IDF!$U$4*(A20+IDF!$U$5)^(-IDF!$U$7) -> 26.44900576 | T20: =IDF!A28 -> 2880 | U20: =IDF!D28 -> 0.3783397429 | V20: 7.965545573 | W20: 7.967115995 | X20: -0.9719626964 | Y20: 63.47493728 | Z20: -7.743739545 | AA20: 0.3892174549 | AB20: 0.0008034738862
A21: 10 | B21: =help1!B20 -> 17.75920785 | C21: =help1!C20 -> 1.354761786 | D21: 19.53512863 | E21: =IDF!$U$4*(A21+IDF!$U$5)^(-IDF!$U$7) -> 19.36878423 | M21: Mellemresultater svarende til Skrift 16
A22: 30 | B22: =help1!B21 -> 9.184371381 | C22: =help1!C21 -> 0.8655906892 | D22: 10.10280852 | E22: =IDF!$U$4*(A22+IDF!$U$5)^(-IDF!$U$7) -> 10.21992223 | M22: Dvs. at effekt af koblede regn IKKE er indkluderet | U22: Sum | W22: =SUM(W10:W20) -> 49.16876993 | X22: =SUM(X10:X20) -> 18.02823475 | Y22: =SUM(Y10:Y20) -> 270.3874624 | Z22: =SUM(Z10:Z20) -> 43.21201882 | AB22: =SUM(AB10:AB20) -> 0.003316306935
A23: 60 | B23: =help1!B22 -> 5.654364374 | C23: =help1!C22 -> 0.6289010706 | D23: 6.219800811 | E23: =IDF!$U$4*(A23+IDF!$U$5)^(-IDF!$U$7) -> 6.440107921 | M23: i mellemresultaterne.
A24: 180 | B24: =help1!B23 -> 2.721953363 | C24: =help1!C23 -> 0.2617716065 | D24: 2.994148699 | E24: =IDF!$U$4*(A24+IDF!$U$5)^(-IDF!$U$7) -> 2.964286556 | M24: Reduceret areal (ha) | Q24: =Q3*Q4 -> 0.1
A25: 360 | B25: =help1!B24 -> 1.672487782 | C25: =help1!C24 -> 0.117765337 | D25: 1.83973656 | E25: =IDF!$U$4*(A25+IDF!$U$5)^(-IDF!$U$7) -> 1.793001419 | M25: Afløbstal (mu-m/s | Q25: =Q5/(Q24*10) -> 0.4 | V25: Afløbstal | W25: tr, 3 par | X25: Vr,k 3 par | Y25: dV/dt | Z25: (dV/dt)^2 | AD25: dbasvol | AE25: alpha | AF25: nu | AG25: theta | AH25: t | AI25: a
A26: 720 | B26: =help1!B25 -> 0.9943042988 | C26: =help1!C25 -> 0.07951993752 | D26: 1.093734729 | E26: =IDF!$U$4*(A26+IDF!$U$5)^(-IDF!$U$7) -> 1.07964426 | M26: Varighed (h) | Q26: =W27/60 -> 7.582008678 | V26: mu-m/s | W26: 1153.531525 | X26: (mm) | Y26: ( … ) | Z26: ( … ) | AD26: =dbasvol(AE26,AF26,AG26,AH26,AI26) -> -0.08880972249 | AE26: =U4 -> 139.7345351 | AF26: =U7 -> 0.7384556131 | AG26: =AE7 -> 1 | AH26: 638 | AI26: =V27 -> 0.4
A27: 1440 | B27: =help1!B26 -> 0.5968013511 | C27: =help1!C26 -> 0.04546340153 | D27: 0.6564814862 | E27: =IDF!$U$4*(A27+IDF!$U$5)^(-IDF!$U$7) -> 0.6486146335 | M27: Vr,k (mm) | Q27: =X27 -> 30.33418407 | T27: Faktisk opland | V27: =Q25 -> 0.4 | W27: =AD28 -> 454.9205207 | X27: =(U$4*(W27+U$5)^(-U$7)-V27)*W27*60/1000 -> 30.33418407 | Y27: =$U$4*(W27+$U$5)^(-1-$U$7)*(W27+$U$5-$U$7*W27)-V27 -> 0.00627667571 | Z27: =SQRT(Y27^2) -> 0.00627667571 | AD27: bisectvol | AE27: xl | AF27: xr | AG27: xmid | AH27: tiny
A28: 2880 | B28: =help1!B27 -> 0.3439452208 | C28: =help1!C27 -> 0.02683912559 | D28: 0.3783397429 | E28: =IDF!$U$4*(A28+IDF!$U$5)^(-IDF!$U$7) -> 0.3892174549 | T28: Initialisering | W28: =(U$4*(1-U$7)/V27)^(1/U$7) -> 452.123037 | AD28: =bisectvol(AE28,AF28,AG28,AH28,AE26,AF26,AG26,AI26) -> 454.9205207 | AE28: =0.3*W28 -> 135.6369111 | AF28: =3*W28 -> 1356.369111 | AG28: =(AE28+AF28)/2 -> 746.0030111 | AH28: =AD3/100000 -> 1e-05
X30: Tilnærmet volumenkurve excl koblede regn. Tilnærmelsen er god op til ca. T=5 år
T31: Volumenkurve | V31: 0.01 | W31: =(U$4*(1-U$7)/V31)^(1/U$7) -> 66792.89728 | X31: =(U$4*(W31+U$5)^(-U$7)-V31)*W31*60/1000 -> 113.143887
T32: Tilnærmet for store afløbstal | V32: =V31*1.2 -> 0.012 | W32: 52180.08929 | X32: 106.0665968
V33: 0.0144 | W33: 40764.24034 | X33: 99.43147154
V34: 0.01728 | W34: 31845.92655 | X34: 93.21078061
V35: 0.020736 | W35: 24878.74248 | X35: 87.3785115
V36: 0.0248832 | W36: 19435.82412 | X36: 81.91025909
V37: 0.02985984 | W37: 15183.69586 | X37: 76.78312128
V38: 0.035831808 | W38: 11861.83918 | X38: 71.97560047
V39: 0.0429981696 | W39: 9266.731231 | X39: 67.4675102
V40: 0.05159780352 | W40: 7239.375484 | X40: 63.23988661
V41: 0.06191736422 | W41: 5655.560314 | X41: 59.2749042
V42: 0.07430083707 | W42: 4418.248858 | X42: 55.55579527
V43: 0.08916100448 | W43: 3451.633771 | X43: 52.0667727
V44: 0.1 | W44: 2954.967779 | X44: 49.98251709
V45: 0.12 | W45: 2308.486214 | X45: 46.83686798
V46: 0.144 | W46: 1803.44051 | X46: 43.88393357
V47: 0.1728 | W47: 1408.887631 | X47: 41.11087494
V48: 0.20736 | W48: 1100.654192 | X48: 38.50550427
V49: 0.248832 | W49: 859.8554093 | X49: 36.05621679
V50: 0.2985984 | W50: 671.7380718 | X50: 33.75192327
V51: 0.35831808 | W51: 524.7766453 | X51: 31.58198273
V52: 0.429981696 | W52: 409.9671271 | X52: 29.53613614
V53: 0.5159780352 | W53: 320.275391 | X53: 27.60444199
V54: 0.6191736422 | W54: 250.2062222 | X54: 25.77721582
V55: 0.7430083707 | W55: 195.4666371 | X55: 24.04497731
V56: 1 | W56: 130.7299867 | X56: 21.40209277
V57: 1.2 | W57: 102.1291583 | X57: 19.87553556
V58: 1.44 | W58: 79.78555829 | X58: 18.41091015
V59: 1.728 | W59: 62.33024356 | X59: 16.99963812
V60: 2.0736 | W60: 48.69376545 | X60: 15.63363093
V61: 2.48832 | W61: 38.04064702 | X61: 14.30558485
V62: 2.985984 | W62: 29.71819518 | X62: 13.00939601
V63: 3.5831808 | W63: 23.21651165 | X63: 11.74069176
V64: 4.29981696 | W64: 18.13725262 | X64: 10.49744024
V65: =V64*1.2 -> 5.159780352 | W65: 14.16922307 | X65: 9.280549327
V66: =V65*1.2 -> 6.191736422 | W66: 11.06931058 | X66: 8.094309235
V67: =V66*1.2 -> 7.430083707 | W67: 8.64759036 | X67: 6.946491712
V68: =V67*1.2 -> 8.916100448 | W68: 6.755688935 | X68: 5.847928623
V69: 10 | W69: 5.783592482 | X69: 5.187640865

Sheet Kommuneliste
B1: Årsmiddelnedbør | C1: Middelværdi Klimagrid | E1: Faskinebund
A2: Kommuner | B2: mm | C2: mm/dag | E2: Nej/ja
A3: Albertslund | B3: 632.4900768 | C3: 27.70499807 | E3: 0
A4: Allerød | B4: 674.1047426 | C4: 27.91964123 | E4: 1
A5: Assens | B5: 697.0225749 | C5: 25.83386401
A6: Ballerup | B6: 647.0512149 | C6: 27.7246692 | E6: Note: Årsmiddelbøren er et maksimum af nedbøren i 5 punkter:
A7: Billund | B7: 906.6343152 | C7: 26.23136824 | E7: 1: Kommunecentrum, samt 4 punkter, 15 km i n, s, ø, v fra kommunecentrum
A8: Bogense | B8: 673.6009414 | C8: 25.74972897
A9: Bornholm | B9: 696.0576568 | C9: 28.98396328
A10: Brøndby | B10: 644.8939072 | C10: 28.18974127
A11: Brønderslev-Dronninglund | B11: 709.8127664 | C11: 27.38203116
A12: Christiansø | B12: 610.004813 | C12: 29.01311765
A13: Dragør | B13: 618.4052835 | C13: 27.70256956
A14: Egedal | B14: 651.3498908 | C14: 28.09670282
A15: Esbjerg | B15: 838.8738425 | C15: 25.91460571
A16: Fanø | B16: 809.8425303 | C16: 25.53997351
A17: Favrskov | B17: 699.7155438 | C17: 25.60518001
A18: Faxe | B18: 629.2901112 | C18: 27.20126958
A19: Fredensborg | B19: 661.906201 | C19: 28.3596103
A20: Fredericia | B20: 778.8090505 | C20: 25.30890102
A21: Frederiksberg | B21: 656.1980497 | C21: 27.76722324
A22: Frederikshavn | B22: 697.0189825 | C22: 27.31939434
A23: Frederikssund | B23: 616.4838248 | C23: 27.81746026
A24: Frederiksværk-Hundested | B24: 621.7252967 | C24: 27.94753366
A25: Furesø | B25: 679.9509202 | C25: 27.76910008
A26: Faaborg-Midtfyn | B26: 685.7367931 | C26: 26.39259476
A27: Gentofte | B27: 676.5623597 | C27: 27.9676502
A28: Gladsaxe | B28: 664.3295168 | C28: 27.96921605
A29: Glostrup | B29: 653.5814674 | C29: 27.68419087
A30: Greve | B30: 612.2476527 | C30: 28.84671912
A31: Gribskov | B31: 632.0460971 | C31: 28.37485669
A32: Guldborgsund | B32: 609.5046878 | C32: 26.42524623
A33: Haderslev | B33: 835.4116961 | C33: 25.5282695
A34: Hedensted | B34: 780.6922455 | C34: 25.12789728
A35: Helsingør | B35: 650.8475818 | C35: 28.27519855
A36: Herlev | B36: 667.9903874 | C36: 27.87617628
A37: Herning | B37: 883.3907781 | C37: 25.49412555
A38: Hillerød | B38: 646.6255728 | C38: 28.10320413
A39: Hjørring | B39: 702.0787194 | C39: 27.29683643
A40: Holbæk | B40: 618.9944681 | C40: 27.67602677
A41: Holstebro | B41: 845.0335724 | C41: 26.18397214
A42: Horsens | B42: 789.9600054 | C42: 25.2180994
A43: Hvidovre | B43: 647.0191228 | C43: 27.81710206
A44: Høje-Taastrup | B44: 631.3365514 | C44: 27.93449103
A45: Hørsholm | B45: 659.792759 | C45: 28.1865892
A46: Ikast-Brande | B46: 829.9568817 | C46: 25.70127277
A47: Ishøj | B47: 609.9901874 | C47: 27.91462124
A48: Jammerbugt | B48: 732.6906416 | C48: 26.48593759
A49: Kalundborg | B49: 612.3145377 | C49: 26.79227817
A50: Kerteminde | B50: 655.6338118 | C50: 26.23995944
A51: Kolding | B51: 824.1617384 | C51: 25.74539846
A52: Københavns | B52: 649.5550348 | C52: 27.6647905
A53: Køge | B53: 635.8491004 | C53: 28.16779845
A54: Langeland | B54: 631.926147 | C54: 27.52112211
A55: Lejre | B55: 622.1792123 | C55: 27.64508825
A56: Lemvig | B56: 820.1493574 | C56: 26.01450114
A57: Lolland | B57: 621.1601388 | C57: 27.2502167
A58: Lyngby-Taarbæk | B58: 646.2152675 | C58: 28.00000473
A59: Læsø | B59: 663.511264 | C59: 27.94283318
A60: Mariagerfjord | B60: 715.810382 | C60: 27.25501725
A61: Middelfart | B61: 763.3860496 | C61: 25.5665447
A62: Morsø | B62: 807.3700473 | C62: 25.75669425
A63: Norddjurs | B63: 650.400965 | C63: 26.66260864
A64: Nyborg | B64: 672.3062303 | C64: 26.40009895
A65: Næstved | B65: 635.5745354 | C65: 27.07074624
A66: Odder | B66: 701.9938006 | C66: 25.58786816
A67: Odense | B67: 680.9571398 | C67: 26.13073707
A68: Odsherred | B68: 608.1074196 | C68: 27.59529816
A69: Randers | B69: 688.0676574 | C69: 26.69955096
A70: Rebild | B70: 725.5793707 | C70: 26.86987733
A71: Ringkøbing-Skjern | B71: 867.0029866 | C71: 25.56130598
A72: Ringsted | B72: 655.7621148 | C72: 27.24406129
A73: Roskilde | B73: 614.927289 | C73: 27.58760816
A74: Rudersdal | B74: 686.9282954 | C74: 27.8077783
A75: Rødovre | B75: 690.772721 | C75: 27.63673787
A76: Samsø | B76: 623.9765951 | C76: 26.12334144
A77: Silkeborg | B77: 810.8622246 | C77: 25.76493534
A78: Skanderborg | B78: 768.9180856 | C78: 25.35325794
A79: Skive | B79: 788.4125946 | C79: 25.91486662
A80: Slagelse | B80: 613.9421049 | C80: 26.60597371
A81: Solrød | B81: 618.8860752 | C81: 27.52175071
A82: Sorø | B82: 631.2468281 | C82: 27.44139834
A83: Stevns | B83: 632.2907312 | C83: 27.45856451
A84: Struer | B84: 825.5901825 | C84: 26.20087608
A85: Svendborg | B85: 675.3365381 | C85: 26.93319917
A86: Syddjurs | B86: 658.8381767 | C86: 27.06237551
A87: Sønderborg | B87: 750.7301905 | C87: 26.2555287
A88: Thisted | B88: 834.518484 | C88: 25.42788807
A89: Tønder | B89: 854.5457241 | C89: 25.65887072
A90: Tårnby | B90: 628.3287179 | C90: 27.52453953
A91: Vallensbæk | B91: 625.2992191 | C91: 27.99006243
A92: Varde | B92: 831.0074021 | C92: 26.00235255
A93: Vejen | B93: 871.6872654 | C93: 25.91144519
A94: Vejle | B94: 822.9652593 | C94: 25.60389042
A95: Vesthimmerland | B95: 737.620306 | C95: 26.17952398
A96: Viborg | B96: 742.7861714 | C96: 25.64165068
A97: Vordingborg | B97: 614.0728412 | C97: 25.93759012
A98: Ærø | B98: 647.9324244 | C98: 27.38489929
A99: Aabenraa | B99: 842.8691782 | C99: 25.58264089
A100: Aalborg | B100: 706.9264496 | C100: 27.22746146
A101: Århus | B101: 696.6034649 | C101: 25.67540526

Sheet Tables
A1: LAMBDA
A3: Variabel | B3: b_0 | C3: b_1 | D3: V(b_0) | E3: Cov | F3: V(b_1) | G3: Res.var. | I3: E(lambda) | J3: V(lambda) | L3: z_0
A4: i1m | B4: 0.2453 | C4: 0.006112 | D4: 0.7629 | E4: -0.001106 | F4: 1.682e-06 | G4: 0.3431 | I4: =B4+C4*IDF!$B$5 -> 4.028594189 | J4: =D4+2*E4*IDF!$B$5+F4*IDF!$B$5^2+G4 -> 0.3812495194 | L4: 15.8
A5: i2m | B5: 0.8487 | C5: 0.005193 | D5: 0.831 | E5: -0.001203 | F5: 1.83e-06 | G5: 0.3977 | I5: =B5+C5*IDF!$B$5 -> 4.063138273 | J5: =D5+2*E5*IDF!$B$5+F5*IDF!$B$5^2+G5 -> 0.4405714071 | L5: 12.8
A6: i5m | B6: 1.298 | C6: 0.004292 | D6: 0.8316 | E6: -0.001205 | F6: 1.833e-06 | G6: 0.4007 | I6: =B6+C6*IDF!$B$5 -> 3.954724257 | J6: =D6+2*E6*IDF!$B$5+F6*IDF!$B$5^2+G6 -> 0.4428448916 | L6: 9
A7: i10m | B7: 1.664 | C7: 0.004366 | D7: 1.06 | E7: -0.001541 | F7: 2.347e-06 | G7: 0.5346 | I7: =B7+C7*IDF!$B$5 -> 4.366529848 | J7: =D7+2*E7*IDF!$B$5+F7*IDF!$B$5^2+G7 -> 0.586121843 | L7: 6
A8: i30m | B8: 1.969 | C8: 0.00325 | D8: 0.903 | E8: -0.001307 | F8: 1.986e-06 | G8: 0.4233 | I8: =B8+C8*IDF!$B$5 -> 3.980732021 | J8: =D8+2*E8*IDF!$B$5+F8*IDF!$B$5^2+G8 -> 0.4691926053 | L8: 3.2
A9: i60m | B9: 2.178 | C9: 0.002735 | D9: 0.908 | E9: -0.001313 | F9: 1.993e-06 | G9: 0.4094 | I9: =B9+C9*IDF!$B$5 -> 3.87094987 | J9: =D9+2*E9*IDF!$B$5+F9*IDF!$B$5^2+G9 -> 0.4555467508 | L9: 2.1
A10: i3h | B10: 1.76 | C10: 0.00272 | D10: 0.7597 | E10: -0.001094 | F10: 1.658e-06 | G10: 0.3088 | I10: =B10+C10*IDF!$B$5 -> 3.443664953 | J10: =D10+2*E10*IDF!$B$5+F10*IDF!$B$5^2+G10 -> 0.349409687 | L10: 1.1
A11: i6h | B11: 0.8727 | C11: 0.003597 | D11: 0.7337 | E11: -0.001051 | F11: 1.588e-06 | G11: 0.3064 | I11: =B11+C11*IDF!$B$5 -> 3.099223102 | J11: =D11+2*E11*IDF!$B$5+F11*IDF!$B$5^2+G11 -> 0.3474224207 | L11: 0.73
A12: i12h | B12: 0.03912 | C12: 0.004415 | D12: 0.7084 | E12: -0.001014 | F12: 1.532e-06 | G12: 0.3096 | I12: =B12+C12*IDF!$B$5 -> 2.771980577 | J12: =D12+2*E12*IDF!$B$5+F12*IDF!$B$5^2+G12 -> 0.3496713788 | L12: 0.45
A13: i24h | B13: -1.518 | C13: 0.007051 | D13: 0.6884 | E13: -0.0009774 | F13: 1.473e-06 | G13: 0.2806 | I13: =B13+C13*IDF!$B$5 -> 2.846529995 | J13: =D13+2*E13*IDF!$B$5+F13*IDF!$B$5^2+G13 -> 0.323375679 | L13: 0.26
A14: i48h | B14: -2.741 | C14: 0.009491 | D14: 0.6109 | E14: -0.0008602 | F14: 1.293e-06 | G14: 0.2127 | I14: =B14+C14*IDF!$B$5 -> 3.133876497 | J14: =D14+2*E14*IDF!$B$5+F14*IDF!$B$5^2+G14 -> 0.254100235 | L14: 0.15
A17: MEAN
A19: Variabel | B19: b_0 | C19: b_1 | D19: V(b_0) | E19: Cov | F19: V(b_1) | G19: Res.var. | I19: E(Mean) | J19: V(Mean)
A20: i1m | B20: 6.223 | C20: 0 | D20: 0.01991 | E20: 0 | F20: 0 | G20: 0.2212 | I20: =B20+C20*IDF!$B$6 -> 6.223 | J20: =D20+2*E20*IDF!$B$6+F20*IDF!$B$6^2+G20 -> 0.24111
A21: i2m | B21: 5.994 | C21: 0 | D21: 0.01665 | E21: 0 | F21: 0 | G21: 0.1275 | I21: =B21+C21*IDF!$B$6 -> 5.994 | J21: =D21+2*E21*IDF!$B$6+F21*IDF!$B$6^2+G21 -> 0.14415
A22: i5m | B22: 4.896 | C22: 0 | D22: 0.0109 | E22: 0 | F22: 0 | G22: 0.0764 | I22: =B22+C22*IDF!$B$6 -> 4.896 | J22: =D22+2*E22*IDF!$B$6+F22*IDF!$B$6^2+G22 -> 0.0873
A23: i10m | B23: 3.577 | C23: 0 | D23: 0.006223 | E23: 0 | F23: 0 | G23: 0.04421 | I23: =B23+C23*IDF!$B$6 -> 3.577 | J23: =D23+2*E23*IDF!$B$6+F23*IDF!$B$6^2+G23 -> 0.050433
A24: i30m | B24: 1.822 | C24: 0 | D24: 0.002434 | E24: 0 | F24: 0 | G24: 0.02471 | I24: =B24+C24*IDF!$B$6 -> 1.822 | J24: =D24+2*E24*IDF!$B$6+F24*IDF!$B$6^2+G24 -> 0.027144
A25: i60m | B25: 1.096 | C25: 0 | D25: 0.001104 | E25: 0 | F25: 0 | G25: 0.01188 | I25: =B25+C25*IDF!$B$6 -> 1.096 | J25: =D25+2*E25*IDF!$B$6+F25*IDF!$B$6^2+G25 -> 0.012984
A26: i3h | B26: -0.3892 | C26: 0.03332 | D26: 0.1145 | E26: -0.004327 | F26: 0.0001639 | G26: 0.001221 | I26: =B26+C26*IDF!$B$6 -> 0.5329652119 | J26: =D26+2*E26*IDF!$B$6+F26*IDF!$B$6^2+G26 -> 0.001753911161
A27: i6h | B27: -0.4425 | C27: 0.02771 | D27: 0.046 | E27: -0.001735 | F27: 6.565e-05 | G27: 0.0004646 | I27: =B27+C27*IDF!$B$6 -> 0.3244027017 | J27: =D27+2*E27*IDF!$B$6+F27*IDF!$B$6^2+G27 -> 0.0007142224606
A28: i12h | B28: -0.3382 | C28: 0.01942 | D28: 0.01371 | E28: -0.000516 | F28: 1.949e-05 | G28: 4.249e-05 | I28: =B28+C28*IDF!$B$6 -> 0.1992684398 | J28: =D28+2*E28*IDF!$B$6+F28*IDF!$B$6^2+G28 -> 0.0001194386753
A29: i24h | B29: -0.2522 | C29: 0.01353 | D29: 0.00411 | E29: -0.0001547 | F29: 5.846e-06 | G29: 9.278e-06 | I29: =B29+C29*IDF!$B$6 -> 0.1222566422 | J29: =D29+2*E29*IDF!$B$6+F29*IDF!$B$6^2+G29 -> 3.413184548e-05
A30: i48h | B30: -0.07725 | C30: 0.005258 | D30: 0.001479 | E30: -5.577e-05 | F30: 2.113e-06 | G30: 1.41e-05 | I30: =B30+C30*IDF!$B$6 -> 0.06827054875 | J30: =D30+2*E30*IDF!$B$6+F30*IDF!$B$6^2+G30 -> 2.459464734e-05
A33: L-CV
B35: L-CV | E35: Kappa
A36: Variabel | B36: mean | C36: res. var | D36: pred. var. | E36: mean | F36: res.var. | G36: pred. var.
A37: i1m | B37: 0.5429 | C37: 0.0004942 | D37: 0.0005112 | E37: =1/B37-2 -> -0.1580401547 | F37: =1/B37^4*C37 -> 0.005688835483 | G37: =1/B37^4*D37 -> 0.005884525898
A38: i2m | B38: 0.529 | C38: 0.000344 | D38: 0.0003628 | E38: =1/B38-2 -> -0.1096408318 | F38: =1/B38^4*C38 -> 0.004392742586 | G38: =1/B38^4*D38 -> 0.004632811076
A39: i5m | B39: 0.5193 | C39: 9.798e-05 | D39: 0.000116 | E39: =1/B39-2 -> -0.07433082996 | F39: =1/B39^4*C39 -> 0.001347299488 | G39: =1/B39^4*D39 -> 0.001595088187
A40: i10m | B40: 0.5326 | C40: 0.0001207 | D40: 0.00014 | E40: =1/B40-2 -> -0.1224183252 | F40: =1/B40^4*C40 -> 0.001500039246 | G40: =1/B40^4*D40 -> 0.001739896391
A41: i30m | B41: 0.5578 | C41: 0.0002168 | D41: 0.0002416 | E41: -0.2072427393 | F41: 0.002239469944 | G41: 0.002495645473
A42: i60m | B42: 0.5577 | C42: 0.000485 | D42: 0.0005195 | E42: -0.2069212838 | F42: 0.005013478544 | G42: 0.00537010743
A43: i3h | B43: 0.548 | C43: 0.0004867 | D43: 0.0005321 | E43: -0.1751824818 | F43: 0.005396834651 | G43: 0.005900258307
A44: i6h | B44: 0.5495 | C44: 0 | D44: 4.538e-05 | E44: -0.1801637853 | F44: 0 | G44: 0.0004977298699
A45: i12h | B45: 0.5369 | C45: 0.0003267 | D45: 0.0003846 | E45: -0.1374557646 | F45: 0.003931656058 | G45: 0.004628450933
A46: i24h | B46: 0.533 | C46: 0.0002715 | D46: 0.0003352 | E46: -0.1238273921 | F46: 0.003364038813 | G46: 0.0041533179
A47: i48h | B47: 0.5234 | C47: 0.0002728 | D47: 0.0003485 | E47: -0.0894153611 | F47: 0.003635042499 | G47: 0.004643740143
A48: i48h | B48: 0.5277 | C48: 0.0005241 | D48: 0.0006419 | E48: =1/B48-2 -> -0.1049838924 | F48: =1/B48^4*C48 -> 0.006758740669 | G48: =1/B48^4*D48 -> 0.008277877572

Sheet help1
A1: Variable | B1: i1m | D1: i2m | F1: i5m | H1: i10m | J1: i30m | L1: i60m | N1: i3h | P1: i6h | R1: i12h | T1: i24h | V1: i48h
A3: q0 | B3: =Tables!$L$4 -> 15.8 | D3: =Tables!$L$5 -> 12.8 | F3: =Tables!$L$6 -> 9 | H3: =Tables!$L$7 -> 6 | J3: =Tables!$L$8 -> 3.2 | L3: =Tables!$L$9 -> 2.1 | N3: =Tables!$L$10 -> 1.1 | P3: =Tables!$L$11 -> 0.73 | R3: =Tables!$L$12 -> 0.45 | T3: =Tables!$L$13 -> 0.26 | V3: =Tables!$L$14 -> 0.15
A4: lambda | B4: =Tables!$I$4 -> 4.028594189 | D4: =Tables!$I$5 -> 4.063138273 | F4: =Tables!$I$6 -> 3.954724257 | H4: =Tables!$I$7 -> 4.366529848 | J4: =Tables!$I$8 -> 3.980732021 | L4: =Tables!$I$9 -> 3.87094987 | N4: =Tables!$I$10 -> 3.443664953 | P4: =Tables!$I$11 -> 3.099223102 | R4: =Tables!$I$12 -> 2.771980577 | T4: =Tables!$I$13 -> 2.846529995 | V4: =Tables!$I$14 -> 3.133876497
A5: mean | B5: =Tables!$I$20 -> 6.223 | D5: =Tables!I21 -> 5.994 | F5: =Tables!I22 -> 4.896 | H5: =Tables!I23 -> 3.577 | J5: =Tables!I24 -> 1.822 | L5: =Tables!I25 -> 1.096 | N5: =Tables!I26 -> 0.5329652119 | P5: =Tables!I27 -> 0.3244027017 | R5: =Tables!I28 -> 0.1992684398 | T5: =Tables!I29 -> 0.1222566422 | V5: =Tables!I30 -> 0.06827054875
A6: kappa | B6: =Tables!$E$37 -> -0.1580401547 | D6: =Tables!$E$38 -> -0.1096408318 | F6: =Tables!$E$39 -> -0.07433082996 | H6: =Tables!$E$40 -> -0.1224183252 | J6: =Tables!$E$41 -> -0.2072427393 | L6: =Tables!$E$42 -> -0.2069212838 | N6: =Tables!$E$43 -> -0.1751824818 | P6: =Tables!$E$44 -> -0.1801637853 | R6: =Tables!$E$45 -> -0.1374557646 | T6: =Tables!$E$46 -> -0.1238273921 | V6: =Tables!$E$47 -> -0.0894153611
A7: V_lambda | B7: =Tables!$J$4 -> 0.3812495194 | D7: =Tables!$J$5 -> 0.4405714071 | F7: =Tables!$J$6 -> 0.4428448916 | H7: =Tables!$J$7 -> 0.586121843 | J7: =Tables!$J$8 -> 0.4691926053 | L7: =Tables!$J$9 -> 0.4555467508 | N7: =Tables!$J$10 -> 0.349409687 | P7: =Tables!$J$11 -> 0.3474224207 | R7: =Tables!$J$12 -> 0.3496713788 | T7: =Tables!$J$13 -> 0.323375679 | V7: =Tables!$J$14 -> 0.254100235
A8: V_mean | B8: =Tables!$J$20 -> 0.24111 | D8: =Tables!J21 -> 0.14415 | F8: =Tables!J22 -> 0.0873 | H8: =Tables!J23 -> 0.050433 | J8: =Tables!J24 -> 0.027144 | L8: =Tables!J25 -> 0.012984 | N8: =Tables!J26 -> 0.001753911161 | P8: =Tables!J27 -> 0.0007142224606 | R8: =Tables!J28 -> 0.0001194386753 | T8: =Tables!J29 -> 3.413184548e-05 | V8: =Tables!J30 -> 2.459464734e-05
A9: V_kappa | B9: =Tables!$G$37 -> 0.005884525898 | D9: =Tables!$G$38 -> 0.004632811076 | F9: =Tables!$G$39 -> 0.001595088187 | H9: =Tables!$G$40 -> 0.001739896391 | J9: =Tables!$G$41 -> 0.002495645473 | L9: =Tables!$G$42 -> 0.00537010743 | N9: =Tables!$G$43 -> 0.005900258307 | P9: =Tables!$G$44 -> 0.0004977298699 | R9: =Tables!$G$45 -> 0.004628450933 | T9: =Tables!$G$46 -> 0.0041533179 | V9: =Tables!$G$47 -> 0.004643740143
A11: Min Lanbda | C11: =MIN(B4:V4) -> 2.771980577
A13: T | B13: z_T | C13: S(z_T) | D13: z_T | E13: S(z_T) | F13: z_T | G13: S(z_T) | H13: z_T | I13: S(z_T) | J13: z_T | K13: S(z_T) | L13: z_T | M13: S(z_T) | N13: z_T | O13: S(z_T) | P13: z_T | Q13: S(z_T) | R13: z_T | S13: S(z_T) | T13: z_T | U13: S(z_T) | V13: z_T | W13: S(z_T)
A14: =IDF!B8 -> 5 | B14: =B$5*(1+B$6)/B$6*(1-(1/($A14*B$4))^B$6)+B$3 -> 35.93471009 | C14: =SQRT(((1+B$6)*B$5*$A14*(B$4*$A14)^(-B$6-1))^2*B$7+((1+B$6)/B$6*(1-(1/($A14*B$4))^B$6))^2*B$8+((1+B$6)*B$5*((B$4*$A14)^(-B$6)/B$6*LN(B$4*$A14)-1/B$6^2*(1-(B$4*$A14)^(-B$6))))^2*B$9) -> 3.232490159 | D14: =D$5*(1+D$6)/D$6*(1-(1/($A14*D$4))^D$6)+D$3 -> 31.84216119 | E14: =SQRT(((1+D$6)*D$5*$A14*(D$4*$A14)^(-D$6-1))^2*D$7+((1+D$6)/D$6*(1-(1/($A14*D$4))^D$6))^2*D$8+((1+D$6)*D$5*((D$4*$A14)^(-D$6)/D$6*LN(D$4*$A14)-1/D$6^2*(1-(D$4*$A14)^(-D$6))))^2*D$9) -> 2.676620131 | F14: =F$5*(1+F$6)/F$6*(1-(1/($A14*F$4))^F$6)+F$3 -> 24.14280941 | G14: =SQRT(((1+F$6)*F$5*$A14*(F$4*$A14)^(-F$6-1))^2*F$7+((1+F$6)/F$6*(1-(1/($A14*F$4))^F$6))^2*F$8+((1+F$6)*F$5*((F$4*$A14)^(-F$6)/F$6*LN(F$4*$A14)-1/F$6^2*(1-(F$4*$A14)^(-F$6))))^2*F$9) -> 1.617755309 | H14: =H$5*(1+H$6)/H$6*(1-(1/($A14*H$4))^H$6)+H$3 -> 17.75920785 | I14: =SQRT(((1+H$6)*H$5*$A14*(H$4*$A14)^(-H$6-1))^2*H$7+((1+H$6)/H$6*(1-(1/($A14*H$4))^H$6))^2*H$8+((1+H$6)*H$5*((H$4*$A14)^(-H$6)/H$6*LN(H$4*$A14)-1/H$6^2*(1-(H$4*$A14)^(-H$6))))^2*H$9) -> 1.354761786 | J14: =J$5*(1+J$6)/J$6*(1-(1/($A14*J$4))^J$6)+J$3 -> 9.184371381 | K14: =SQRT(((1+J$6)*J$5*$A14*(J$4*$A14)^(-J$6-1))^2*J$7+((1+J$6)/J$6*(1-(1/($A14*J$4))^J$6))^2*J$8+((1+J$6)*J$5*((J$4*$A14)^(-J$6)/J$6*LN(J$4*$A14)-1/J$6^2*(1-(J$4*$A14)^(-J$6))))^2*J$9) -> 0.8655906892 | L14: =L$5*(1+L$6)/L$6*(1-(1/($A14*L$4))^L$6)+L$3 -> 5.654364374 | M14: =SQRT(((1+L$6)*L$5*$A14*(L$4*$A14)^(-L$6-1))^2*L$7+((1+L$6)/L$6*(1-(1/($A14*L$4))^L$6))^2*L$8+((1+L$6)*L$5*((L$4*$A14)^(-L$6)/L$6*LN(L$4*$A14)-1/L$6^2*(1-(L$4*$A14)^(-L$6))))^2*L$9) -> 0.6289010706 | N14: =N$5*(1+N$6)/N$6*(1-(1/($A14*N$4))^N$6)+N$3 -> 2.721953363 | O14: =SQRT(((1+N$6)*N$5*$A14*(N$4*$A14)^(-N$6-1))^2*N$7+((1+N$6)/N$6*(1-(1/($A14*N$4))^N$6))^2*N$8+((1+N$6)*N$5*((N$4*$A14)^(-N$6)/N$6*LN(N$4*$A14)-1/N$6^2*(1-(N$4*$A14)^(-N$6))))^2*N$9) -> 0.2617716065 | P14: =P$5*(1+P$6)/P$6*(1-(1/($A14*P$4))^P$6)+P$3 -> 1.672487782 | Q14: =SQRT(((1+P$6)*P$5*$A14*(P$4*$A14)^(-P$6-1))^2*P$7+((1+P$6)/P$6*(1-(1/($A14*P$4))^P$6))^2*P$8+((1+P$6)*P$5*((P$4*$A14)^(-P$6)/P$6*LN(P$4*$A14)-1/P$6^2*(1-(P$4*$A14)^(-P$6))))^2*P$9) -> 0.117765337 | R14: =R$5*(1+R$6)/R$6*(1-(1/($A14*R$4))^R$6)+R$3 -> 0.9943042988 | S14: =SQRT(((1+R$6)*R$5*$A14*(R$4*$A14)^(-R$6-1))^2*R$7+((1+R$6)/R$6*(1-(1/($A14*R$4))^R$6))^2*R$8+((1+R$6)*R$5*((R$4*$A14)^(-R$6)/R$6*LN(R$4*$A14)-1/R$6^2*(1-(R$4*$A14)^(-R$6))))^2*R$9) -> 0.07951993752 | T14: =T$5*(1+T$6)/T$6*(1-(1/($A14*T$4))^T$6)+T$3 -> 0.5968013511 | U14: =SQRT(((1+T$6)*T$5*$A14*(T$4*$A14)^(-T$6-1))^2*T$7+((1+T$6)/T$6*(1-(1/($A14*T$4))^T$6))^2*T$8+((1+T$6)*T$5*((T$4*$A14)^(-T$6)/T$6*LN(T$4*$A14)-1/T$6^2*(1-(T$4*$A14)^(-T$6))))^2*T$9) -> 0.04546340153 | V14: =V$5*(1+V$6)/V$6*(1-(1/($A14*V$4))^V$6)+V$3 -> 0.3439452208 | W14: =SQRT(((1+V$6)*V$5*$A14*(V$4*$A14)^(-V$6-1))^2*V$7+((1+V$6)/V$6*(1-(1/($A14*V$4))^V$6))^2*V$8+((1+V$6)*V$5*((V$4*$A14)^(-V$6)/V$6*LN(V$4*$A14)-1/V$6^2*(1-(V$4*$A14)^(-V$6))))^2*V$9) -> 0.02683912559
A16: Dur(min) | B16: z_T | C16: S_T
A17: 1 | B17: =B14 -> 35.93471009 | C17: =C14 -> 3.232490159
A18: 2 | B18: =D14 -> 31.84216119 | C18: =E14 -> 2.676620131
A19: 5 | B19: =F14 -> 24.14280941 | C19: =G14 -> 1.617755309
A20: 10 | B20: =H14 -> 17.75920785 | C20: =I14 -> 1.354761786
A21: 30 | B21: =J14 -> 9.184371381 | C21: =K14 -> 0.8655906892
A22: 60 | B22: =L14 -> 5.654364374 | C22: =M14 -> 0.6289010706
A23: 180 | B23: =N14 -> 2.721953363 | C23: =O14 -> 0.2617716065
A24: 360 | B24: =P14 -> 1.672487782 | C24: =Q14 -> 0.117765337
A25: 720 | B25: =R14 -> 0.9943042988 | C25: =S14 -> 0.07951993752
A26: 1440 | B26: =T14 -> 0.5968013511 | C26: =U14 -> 0.04546340153
A27: 2880 | B27: =V14 -> 0.3439452208 | C27: =W14 -> 0.02683912559

Sheet help3
A1: Variable | C1: bv1 | D1: bv2 | M1: LAMBDA
A3: z0 | C3: =Q4 -> 17 | D3: =Q5 -> 5.4 | M3: Variable | N3: b_0 | O3: b_1 | Q3: z_0 | R3: E(lambda)
A4: lambda | C4: =R4 -> 2.942372419 | D4: =R5 -> 3.526669369 | M4: bv1 | N4: -1.039 | O4: 0.006432 | Q4: 17 | R4: =N4+O4*IDF!$B$5 -> 2.942372419
A5: mean | C5: =Q10 -> 11.70003976 | D5: =Q11 -> 5.235498727 | M5: bv2 | N5: 2.449 | O5: 0.001741 | Q5: 5.4 | R5: =N5+O5*IDF!$B$5 -> 3.526669369
A6: kappa | C6: =O17 -> -0.1741829469 | D6: =O18 -> -0.1238273921
M7: MEAN
G9: Incl. koblede regn, f-faktor 0, s-faktor 1 | M9: Variable | N9: b_0 | O9: b_1 | Q9: E(mean)
A10: T = | B10: =IDF!B8 -> 5 | C10: =C$5*(1+C$6)/C$6*(1-(1/($B10*C$4))^C$6)+C$3 -> 50.13305956 | D10: =D$5*(1+D$6)/D$6*(1-(1/($B10*D$4))^D$6)+D$3 -> 21.20687521 | F10: 0.1 | G10: =C10 -> 50.13305956 | M10: bv1 | N10: -17 | O10: 1.037 | Q10: =N10+O10*IDF!B6 -> 11.70003976
F11: 1 | G11: =D10 -> 21.20687521 | M11: bv2 | N11: -2.547 | O11: 0.2812 | Q11: =N11+O11*IDF!B6 -> 5.235498727
M13: L-CV
O15: Kappa
M16: Variable | N16: mean | O16: mean
M17: bv1 | N17: 0.5477 | O17: =1/N17-2 -> -0.1741829469
M18: bv2 | N18: 0.533 | O18: =1/N18-2 -> -0.1238273921
B26: 1 | C26: =C$5*(1+C$6)/C$6*(1-(1/($B26*C$4))^C$6)+C$3 -> 28.47198216 | D26: 11.65705936
B27: 2 | C27: 37.06244713 | D27: 15.53787597
B28: 5 | C28: 50.13305956 | D28: 21.20687521
B29: 10 | C29: 61.50318685 | D29: 25.94356292
B30: 20 | C30: 74.33238811 | D30: 31.10476082
B31: 50 | C31: 93.85234633 | D31: 38.64410885
B32: 100 | C32: 110.8327603 | D32: 44.94355176
